fUSD/lending_fUSD_20250511
["ID","MTS","AMOUNT","RATE_DAILY","PERIOD"]
[360677604,1746923453940,-400.0,0.00019847,2]
[360677605,1746923453949,-462.92,0.00019847,2]
[360677606,1746923453958,-400.0,0.00019847,2]
[360677607,1746923453967,-400.0,0.00019847,2]
[360677608,1746923453976,-400.0,0.00019847,2]
[360677609,1746923453985,-400.0,0.00019847,2]
[360677610,1746923453995,-400.0,0.00019847,2]
[360677611,1746923454004,-400.0,0.00019847,2]
[360677612,1746923454013,-400.0,0.00019847,2]
[360677613,1746923454023,-400.0,0.00019847,2]
[360677614,1746923454031,-564.47,0.00019847,2]
[360677615,1746923454042,-400.0,0.00019847,2]
[360677616,1746923454054,-400.0,0.00019847,2]
[360677617,1746923454064,-400.0,0.00019847,2]
[360677618,1746923454073,-644.84,0.00019847,2]
[360677619,1746923454082,-12500.0,0.00019847,2]
[360677620,1746923454091,-15864.65702285,0.00019848,2]
[360677621,1746923454101,-12500.0,0.00019856,2]
[360677622,1746923454110,-458.74,0.00019857,2]
[360677623,1746923454119,-400.0,0.00019857,2]
[360677624,1746923454128,-400.0,0.00019857,2]
[360677625,1746923454137,-467.06,0.00019857,2]
[360677626,1746923454146,-206.28,0.00019857,2]
[360677627,1746923454155,-400.0,0.00019857,2]
[360677628,1746923454165,-574.09,0.00019857,2]
[360677629,1746923454174,-400.0,0.00019857,2]
[360677630,1746923454184,-400.0,0.00019857,2]
[360677631,1746923454193,-400.0,0.00019857,2]
[360677632,1746923454202,-400.0,0.00019857,2]
[360677633,1746923454212,-400.0,0.00019857,2]
[360677634,1746923454221,-1032.88,0.00019857,2]
[360677635,1746923454231,-400.0,0.00019857,2]
[360677636,1746923454241,-400.0,0.00019857,2]
[360677637,1746923454250,-400.0,0.00019857,2]
[360677638,1746923454259,-400.0,0.00019857,2]
[360677639,1746923454269,-567.92,0.00019857,2]
[360677640,1746923454281,-400.0,0.00019857,2]
[360677641,1746923454291,-605.66,0.00019857,2]
[360677642,1746923454303,-400.0,0.00019857,2]
[360677643,1746923454313,-400.0,0.00019857,2]
[360677644,1746923454323,-400.0,0.00019857,2]
[360677645,1746923454332,-673.79,0.00019857,2]
[360677646,1746923454342,-400.0,0.00019857,2]
[360677647,1746923454351,-2198.29083339,0.00019857,2]
[360677648,1746923454363,-5978.53058071,0.00019857,2]
[360677649,1746923455222,-153.0,0.00019575,2]
[360677650,1746923455232,-400.97,0.00019734,2]
[360677651,1746923455242,-2803.3785859,0.00019857,2]
[360677652,1746923455251,-515.77,0.00019857,2]
[360677653,1746923455261,-400.97,0.00019857,2]
[360677654,1746923455271,-400.0,0.00019858,2]
[360677655,1746923455281,-400.0,0.00019858,2]
[360677656,1746923455290,-400.0,0.00019858,2]
[360677657,1746923455302,-400.0,0.00019858,2]
[360677658,1746923455311,-400.0,0.00019858,2]
[360677659,1746923455321,-400.0,0.00019858,2]
[360677660,1746923455330,-400.0,0.00019858,2]
[360677661,1746923455340,-400.0,0.00019858,2]
[360677662,1746923455349,-400.0,0.00019858,2]
[360677663,1746923455359,-574.2,0.00019858,2]
[360677664,1746923455368,-400.0,0.00019858,2]
[360677665,1746923455377,-400.0,0.00019858,2]
[360677666,1746923455387,-400.0,0.00019858,2]
[360677667,1746923455396,-400.0,0.00019858,2]
[360677668,1746923455406,-400.0,0.00019858,2]
[360677669,1746923455415,-400.0,0.00019858,2]
[360677670,1746923455424,-400.0,0.00019858,2]
[360677671,1746923455436,-400.0,0.00019858,2]
[360677672,1746923455449,-400.0,0.00019858,2]
[360677673,1746923455459,-400.0,0.00019858,2]
[360677674,1746923455469,-400.0,0.00019858,2]
[360677675,1746923455478,-638.04,0.00019858,2]
[360677676,1746923455488,-400.0,0.00019858,2]
[360677677,1746923455497,-500.0,0.00019858,2]
[360677678,1746923455507,-400.0,0.00019858,2]
[360677679,1746923455516,-842.22,0.00019858,2]
[360677680,1746923455525,-560.99,0.00019858,2]
[360677681,1746923455535,-400.0,0.00019858,2]
[360677682,1746923455544,-400.0,0.00019858,2]
[360677683,1746923455559,-670.21,0.00019858,2]
[360677684,1746923455569,-400.0,0.00019858,2]
[360677685,1746923455578,-400.0,0.00019858,2]
[360677686,1746923455588,-12500.0,0.00019865,2]
[360677687,1746923455598,-246.80292193,0.00019866,2]
[360677688,1746923455608,-400.0,0.00019872,2]
[360677689,1746923455617,-271.28282818,0.00019872,2]
[360677690,1746923455627,-400.0,0.00019872,2]
[360677691,1746923455636,-400.0,0.00019872,2]
[360677692,1746923455645,-400.0,0.00019872,2]
[360677693,1746923455655,-400.0,0.00019872,2]
[360677694,1746923455664,-400.0,0.00019872,2]
[360677695,1746923455678,-400.0,0.00019872,2]
[360677696,1746923455688,-400.0,0.00019872,2]
[360677697,1746923455697,-400.0,0.00019872,2]
[360677698,1746923455706,-400.0,0.00019872,2]
[360677699,1746923455718,-400.0,0.00019872,2]
[360677700,1746923455728,-447.66,0.00019872,2]
[360677701,1746923455738,-400.0,0.00019872,2]
[360677702,1746923455747,-400.0,0.00019872,2]
[360677703,1746923455757,-400.0,0.00019872,2]
[360677704,1746923455767,-250.0,0.00019872,2]
[360677705,1746923455776,-400.0,0.00019872,2]
[360677706,1746923455785,-400.0,0.00019872,2]
[360677707,1746923455797,-400.0,0.00019872,2]
[360677708,1746923455809,-400.0,0.00019872,2]
[360677709,1746923455819,-400.0,0.00019872,2]
[360677710,1746923455829,-400.0,0.00019872,2]
[360677711,1746923455838,-387.6,0.00019872,2]
[360677712,1746923455848,-400.0,0.00019872,2]
[360677713,1746923455858,-400.0,0.00019872,2]
[360677714,1746923455867,-400.0,0.00019872,2]
[360677715,1746923455877,-173.67873171,0.00019872,2]
[360677716,1746923455886,-400.0,0.00019872,2]
[360677717,1746923455896,-405.3983683,0.00019872,2]
[360677718,1746923455906,-400.0,0.00019872,2]
[360677719,1746923455915,-400.0,0.00019872,2]
[360677720,1746923455925,-400.0,0.00019872,2]
[360677721,1746923455934,-400.0,0.00019872,2]
[360677722,1746923455943,-400.0,0.00019872,2]
[360677723,1746923455952,-400.0,0.00019872,2]
[360677724,1746923455962,-400.0,0.00019872,2]
[360677725,1746923455971,-400.0,0.00019872,2]
[360677726,1746923455980,-400.0,0.00019872,2]
[360677727,1746923455989,-400.0,0.00019872,2]
[360677728,1746923455998,-400.0,0.00019872,2]
[360677729,1746923456007,-400.0,0.00019872,2]
[360677730,1746923456016,-400.0,0.00019872,2]
[360677731,1746923456025,-400.0,0.00019872,2]
[360677732,1746923456034,-196.56,0.00019872,2]
[360677733,1746923456044,-248.37321473,0.00019872,2]
[360677734,1746923456056,-400.0,0.00019872,2]
[360677735,1746923456065,-400.0,0.00019872,2]
[360677736,1746923456074,-400.0,0.00019872,2]
[360677737,1746923456084,-401.37,0.00019872,2]
[360677738,1746923456093,-400.0,0.00019872,2]
[360677739,1746923456103,-427.15,0.00019872,2]
[360677740,1746923456112,-400.0,0.00019872,2]
[360677741,1746923456121,-400.0,0.00019872,2]
[360677742,1746923456130,-400.0,0.00019872,2]
[360677743,1746923456139,-400.0,0.00019872,2]
[360677744,1746923456150,-400.0,0.00019872,2]
[360677745,1746923456159,-400.0,0.00019872,2]
[360677746,1746923456167,-400.0,0.00019872,2]
[360677747,1746923456176,-400.0,0.00019872,2]
[360677748,1746923456186,-433.02953836,0.00019872,2]
[360677749,1746923456195,-400.0,0.00019872,2]
[360677750,1746923456204,-400.0,0.00019872,2]
[360677751,1746923456214,-423.54,0.00019872,2]
[360677752,1746923456223,-400.0,0.00019872,2]
[360677753,1746923456232,-400.0,0.00019872,2]
[360677754,1746923456241,-482.83,0.00019872,2]
[360677755,1746923456251,-504.55761993,0.00019872,2]
[360677756,1746923456260,-400.0,0.00019872,2]
[360677757,1746923456269,-400.0,0.00019872,2]
[360677758,1746923456278,-400.0,0.00019872,2]
[360677759,1746923456289,-490.0,0.00019872,2]
[360677760,1746923456301,-400.0,0.00019872,2]
[360677761,1746923456310,-556.75,0.00019872,2]
[360677762,1746923456319,-235.63284123,0.00019872,2]
[360677763,1746923456328,-400.0,0.00019872,2]
[360677764,1746923456338,-400.0,0.00019872,2]
[360677765,1746923456347,-400.0,0.00019872,2]
[360677766,1746923456356,-161.4115648,0.00019872,2]
[360677767,1746923456365,-400.0,0.00019872,2]
[360677768,1746923456374,-400.0,0.00019872,2]
[360677769,1746923456384,-400.0,0.00019872,2]
[360677770,1746923456393,-400.0,0.00019872,2]
[360677771,1746923456402,-400.0,0.00019872,2]
[360677772,1746923456555,-400.0,0.00019872,2]
[360677773,1746923456585,-400.0,0.00019872,2]
[360677774,1746923456595,-446.14,0.00019872,2]
[360677775,1746923456604,-400.0,0.00019872,2]
[360677776,1746923456614,-400.0,0.00019872,2]
[360677777,1746923456623,-400.0,0.00019872,2]
[360677778,1746923456632,-400.0,0.00019872,2]
[360677779,1746923456642,-400.0,0.00019872,2]
[360677780,1746923456651,-400.0,0.00019872,2]
[360677781,1746923456660,-400.0,0.00019872,2]
[360677782,1746923456670,-580.71,0.00019872,2]
[360677783,1746923456679,-400.0,0.00019872,2]
[360677784,1746923456690,-241.7191376,0.00019872,2]
[360677785,1746923456701,-221.1406273,0.00019872,2]
[360677786,1746923456711,-400.0,0.00019872,2]
[360677787,1746923456720,-457.53,0.00019872,2]
[360677788,1746923456731,-400.0,0.00019872,2]
[360677789,1746923456740,-400.0,0.00019872,2]
[360677790,1746923456750,-300.0,0.00019872,2]
[360677791,1746923456759,-430.31,0.00019872,2]
[360677792,1746923456770,-400.0,0.00019872,2]
[360677793,1746923456779,-400.0,0.00019872,2]
[360677794,1746923456789,-400.0,0.00019872,2]
[360677795,1746923456801,-412.72526133,0.00019872,2]
[360677796,1746923456815,-197.61473867,0.00019872,2]
[360677797,1746923456824,-400.0,0.00019872,2]
[360677798,1746923456833,-400.0,0.00019872,2]
[360677799,1746923456842,-127.69058676,0.00019872,2]
[360677800,1746923456857,-272.30941324,0.00019872,2]
[360677801,1746923456867,-400.0,0.00019872,2]
[360677802,1746923456877,-575.71,0.00019872,2]
[360677803,1746923456886,-189.18689274,0.00019872,2]
[360677804,1746923456896,-400.0,0.00019872,2]
[360677805,1746923456905,-400.0,0.00019872,2]
[360677806,1746923456914,-683.06369402,0.00019872,2]
[360677807,1746923456926,-804.78630598,0.00019872,2]
[360677808,1746923456935,-400.0,0.00019872,2]
[360677809,1746923456946,-43.57231841,0.00019872,2]
[360677810,1746923456958,-356.42768159,0.00019872,2]
[360677811,1746923456974,-400.0,0.00019872,2]
[360677812,1746923456984,-400.0,0.00019872,2]
[360677813,1746923456994,-400.0,0.00019872,2]
[360677814,1746923457003,-2001.42,0.00019872,2]
[360677815,1746923457013,-400.0,0.00019872,2]
[360677816,1746923457022,-400.0,0.00019872,2]
[360677817,1746923457031,-400.0,0.00019872,2]
[360677818,1746923457040,-500.0,0.00019872,2]
[360677819,1746923457054,-1131.09,0.00019872,2]
[360677820,1746923457064,-400.0,0.00019872,2]
[360677821,1746923457073,-400.0,0.00019872,2]
[360677822,1746923457082,-400.0,0.00019872,2]
[360677823,1746923457092,-511.43,0.00019872,2]
[360677824,1746923457101,-596.69949485,0.00019872,2]
[360677825,1746923457112,-297.98050515,0.00019872,2]
[360677826,1746923457122,-400.0,0.00019872,2]
[360677827,1746923457131,-400.0,0.00019872,2]
[360677828,1746923457140,-400.0,0.00019872,2]
[360677829,1746923457150,-400.0,0.00019872,2]
[360677830,1746923457158,-400.0,0.00019872,2]
[360677831,1746923457168,-400.0,0.00019872,2]
[360677832,1746923457177,-400.0,0.00019872,2]
[360677833,1746923457186,-325.65531698,0.00019872,2]
[360677834,1746923457197,-74.34468302,0.00019872,2]
[360677835,1746923457206,-400.0,0.00019872,2]
[360677836,1746923457215,-400.0,0.00019872,2]
[360677837,1746923457224,-400.0,0.00019872,2]
[360677838,1746923457234,-400.0,0.00019872,2]
[360677839,1746923457244,-400.0,0.00019872,2]
[360677840,1746923457253,-400.0,0.00019872,2]
[360677841,1746923457262,-400.0,0.00019872,2]
[360677842,1746923457271,-400.0,0.00019872,2]
[360677843,1746923457281,-400.0,0.00019872,2]
[360677844,1746923457290,-400.0,0.00019872,2]
[360677845,1746923457302,-400.0,0.00019872,2]
[360677846,1746923457311,-404.51,0.00019872,2]
[360677847,1746923457320,-400.0,0.00019872,2]
[360677848,1746923457330,-400.0,0.00019872,2]
[360677849,1746923457340,-400.0,0.00019872,2]
[360677850,1746923457350,-400.0,0.00019872,2]
[360677851,1746923457360,-400.0,0.00019872,2]
[360677852,1746923457369,-400.0,0.00019872,2]
[360677853,1746923457379,-400.0,0.00019872,2]
[360677854,1746923457388,-400.0,0.00019872,2]
[360677855,1746923457398,-469.1907846,0.00019872,2]
[360677856,1746923457407,-400.0,0.00019872,2]
[360677857,1746923457417,-400.0,0.00019872,2]
[360677858,1746923457427,-380.31171238,0.00019872,2]
[360677859,1746923457446,-19.68828762,0.00019872,2]
[360677860,1746923457455,-400.0,0.00019872,2]
[360677861,1746923457465,-549.68,0.00019872,2]
[360677862,1746923457484,-400.0,0.00019872,2]
[360677863,1746923457495,-400.0,0.00019872,2]
[360677864,1746923457505,-449.54575538,0.00019872,2]
[360677865,1746923457515,-400.0,0.00019872,2]
[360677866,1746923457525,-400.0,0.00019872,2]
[360677867,1746923457535,-500.0,0.00019873,2]
[360677868,1746923457545,-500.0,0.00019873,2]
[360677869,1746923457558,-500.0,0.00019873,2]
[360677870,1746923457569,-500.0,0.00019873,2]
[360677871,1746923457579,-500.0,0.00019873,2]
[360677872,1746923457589,-556.86010887,0.00019873,2]
[360677873,1746923457599,-500.0,0.00019873,2]
[360677874,1746923457610,-500.0,0.00019873,2]
[360677875,1746923457620,-500.0,0.00019873,2]
[360677876,1746923457629,-500.0,0.00019873,2]
[360677877,1746923457639,-500.0,0.00019873,2]
[360677878,1746923457649,-500.0,0.00019873,2]
[360677879,1746923457658,-22293.6583,0.00019873,2]
[360677880,1746923457670,-12500.0,0.00019874,2]
[360677881,1746923457683,-400.0,0.00019881,2]
[360677882,1746923457693,-356.42629365,0.00019881,2]
[360677883,1746923457703,-400.41089882,0.00019881,2]
[360677884,1746923457714,-2380.28874698,0.00019882,2]
[360677885,1746923457727,-827.01802156,0.00019882,2]
[360677886,1746923457745,-608.78929597,0.00019882,2]
[360677887,1746923457847,-5627.79817372,0.00019882,2]
[360677888,1746923457860,-3056.10576177,0.00019882,2]
[360677889,1746923457871,-156.82515075,0.00019884,2]
[360677890,1746923457881,-228.50585418,0.00019887,2]
[360677891,1746923457891,-1018.50060729,0.00019891,2]
[360677892,1746923483484,1172.27,0.00030137,120]
[360677897,1746923617517,625.27,0.00016864,2]
[360677900,1746923797822,-213.7179908,0.0002,9]
[360677901,1746923866948,2249.44296182,0.0003,120]
[360677902,1746923942866,2346.3,0.00030137,120]
[360677903,1746924108933,328.12,0.00013699,2]
[360677905,1746924417427,299.92,0.0002553,120]
[360677906,1746924417468,299.92,0.00027851,120]
[360677907,1746924434117,-182.88912498,0.00018493,2]
[360677908,1746924434139,-299.92,0.00018567,2]
[360677909,1746924434159,-609.09831791,0.00018568,2]
[360677926,1746924632310,-1349.3,0.00018491,2]
[360677927,1746924632319,-150.0,0.0001851,2]
[360677928,1746924632328,-252.80602903,0.00018568,2]
[360677929,1746924632363,-691.65929644,0.00018568,2]
[360677930,1746924632375,-386.88397494,0.00018568,2]
[360677931,1746924632420,-2708.89238168,0.00018568,2]
[360677932,1746924632430,-250.0,0.00018568,2]
[360677933,1746924632441,-187.7,0.00018569,2]
[360677934,1746924632451,-166.37,0.00018593,2]
[360677935,1746924632460,-203.77,0.00018596,2]
[360677936,1746924632469,-187.7,0.00018661,2]
[360677937,1746924632478,-200.0,0.00018715,2]
[360677938,1746924632487,-1000.0,0.00018819,2]
[360677939,1746924632497,-200.0,0.00018974,2]
[360677940,1746924632506,-1200.0,0.00018999,2]
[360677941,1746924632515,-300.0,0.00018999,2]
[360677942,1746924632524,-1000.0,0.00019,2]
[360677943,1746924632534,-1155.86,0.00019,2]
[360677944,1746924632543,-165.32,0.00019081,2]
[360677945,1746924632553,-625.27,0.00019128,2]
[360677946,1746924632563,-151.0,0.00019178,2]
[360677947,1746924632573,-300.0,0.00019494,2]
[360677948,1746924632582,-173.3936,0.00019514,2]
[360677949,1746924632591,-752.4727,0.00019514,2]
[360677950,1746924632600,-317.402,0.00019514,2]
[360677951,1746924632609,-414.3473,0.00019515,2]
[360677952,1746924632619,-207.4,0.00019517,2]
[360677953,1746924632628,-500.0,0.00019529,2]
[360677954,1746924632637,-500.0,0.00019529,2]
[360677955,1746924632647,-500.0,0.00019529,2]
[360677956,1746924632656,-500.0,0.00019529,2]
[360677957,1746924632666,-500.0,0.00019529,2]
[360677958,1746924632675,-500.0,0.00019529,2]
[360677959,1746924632684,-500.0,0.00019529,2]
[360677960,1746924632695,-500.0,0.00019529,2]
[360677961,1746924632705,-500.0,0.00019529,2]
[360677962,1746924632714,-500.0,0.00019529,2]
[360677963,1746924632724,-500.0,0.00019529,2]
[360677964,1746924632733,-500.0,0.00019529,2]
[360677965,1746924632742,-543.15778674,0.00019529,2]
[360677966,1746924632752,-500.0,0.00019529,2]
[360677967,1746924632762,-500.0,0.00019529,2]
[360677968,1746924632773,-500.0,0.00019529,2]
[360677969,1746924632782,-500.0,0.00019529,2]
[360677970,1746924632791,-500.0,0.00019529,2]
[360677971,1746924632800,-850.0,0.0001953,2]
[360677972,1746924632810,-1696.44618518,0.00019532,2]
[360677973,1746924632818,-1096.0627,0.00019532,2]
[360677974,1746924632828,-4306.1495,0.00019533,2]
[360677975,1746924632837,-577.0512,0.00019533,2]
[360677976,1746924632846,-161.88841778,0.00019533,2]
[360677977,1746924632855,-650.74793317,0.00019573,2]
[360677978,1746924632867,-1045.69825197,0.00019573,2]
[360677979,1746924632876,-151.0,0.00019602,2]
[360677980,1746924632886,-161.88841776,0.00019606,2]
[360677981,1746924632895,-205.34474124,0.0001961,2]
[360677982,1746924632951,-283.46582527,0.00019529,2]
[360677983,1746924632962,-216.53417473,0.00019529,2]
[360677984,1746924632971,-290.03582527,0.0001961,2]
[360677985,1746924632998,-500.0,0.00019529,2]
[360677986,1746924633007,-131.61943349,0.0001961,2]
[360677987,1746924633018,-1226.12056621,0.0001961,2]
[360677988,1746924633031,-5218.28615,0.0001961,2]
[360677989,1746924633043,-368.59328379,0.0001961,2]
[360677990,1746924633053,-116.41119086,0.0001961,2]
[360677991,1746924633066,-1933.358111,0.0001961,2]
[360677992,1746924633078,-359.56063052,0.0001961,2]
[360677993,1746924633097,-1614.67006762,0.0001961,2]
[360677994,1746924633107,-189.756,0.0001961,2]
[360677995,1746924633117,-153.0,0.0001961,2]
[360677996,1746924633127,-307.39822227,0.00019613,2]
[360677997,1746924633137,-377.75149501,0.00019613,2]
[360677998,1746924633348,-500.0,0.00019613,2]
[360677999,1746924633359,-500.0,0.00019613,2]
[360678000,1746924633370,-500.0,0.00019613,2]
[360678001,1746924633380,-500.0,0.00019613,2]
[360678002,1746924633391,-500.0,0.00019613,2]
[360678003,1746924633401,-500.0,0.00019613,2]
[360678004,1746924633410,-500.0,0.00019613,2]
[360678005,1746924633420,-500.0,0.00019613,2]
[360678006,1746924633430,-500.0,0.00019613,2]
[360678007,1746924633442,-364.16192499,0.00019613,2]
[360678008,1746924633453,-500.0,0.00019613,2]
[360678009,1746924633463,-500.0,0.00019613,2]
[360678010,1746924633472,-500.0,0.00019613,2]
[360678011,1746924633482,-500.0,0.00019613,2]
[360678012,1746924633492,-500.0,0.00019613,2]
[360678013,1746924633503,-254.91334749,0.00019613,2]
[360678014,1746924633512,-71.03468548,0.00019613,2]
[360678024,1746924638347,-500.0,0.00019529,2]
[360678025,1746924638357,-500.0,0.00019529,2]
[360678026,1746924638366,-500.0,0.00019529,2]
[360678027,1746924638375,-500.0,0.00019529,2]
[360678028,1746924638385,-500.0,0.00019529,2]
[360678029,1746924638394,-500.0,0.00019529,2]
[360678030,1746924638403,-500.0,0.00019529,2]
[360678031,1746924638413,-500.0,0.00019529,2]
[360678032,1746924638422,-500.0,0.00019529,2]
[360678033,1746924638431,-500.0,0.00019529,2]
[360678034,1746924638440,-500.0,0.00019529,2]
[360678035,1746924638451,-500.0,0.00019529,2]
[360678036,1746924638460,-500.0,0.00019529,2]
[360678037,1746924638469,-500.0,0.00019529,2]
[360678038,1746924638479,-500.0,0.00019529,2]
[360678039,1746924638487,-500.0,0.00019529,2]
[360678040,1746924638496,-500.0,0.00019529,2]
[360678041,1746924638506,-150.73100283,0.00019529,2]
[360678042,1746924638516,-428.96531452,0.00019613,2]
[360678043,1746924638525,-317.54461515,0.00019613,2]
[360678044,1746924638535,-500.0,0.00019613,2]
[360678045,1746924638544,-449.57702438,0.00019613,2]
[360678046,1746924638554,-1696.44618514,0.00019614,2]
[360678047,1746924638563,-400.0,0.00019614,2]
[360678048,1746924638573,-400.0,0.00019614,2]
[360678049,1746924638582,-400.0,0.00019614,2]
[360678050,1746924638592,-400.0,0.00019614,2]
[360678051,1746924638601,-400.0,0.00019614,2]
[360678052,1746924638611,-400.0,0.00019614,2]
[360678053,1746924638621,-400.0,0.00019614,2]
[360678054,1746924638631,-400.0,0.00019614,2]
[360678055,1746924638640,-400.0,0.00019614,2]
[360678056,1746924638649,-400.0,0.00019614,2]
[360678057,1746924638659,-400.0,0.00019614,2]
[360678058,1746924638670,-400.0,0.00019614,2]
[360678059,1746924638680,-400.0,0.00019614,2]
[360678060,1746924638690,-163.07618862,0.00019614,2]
[360678061,1746924638699,-400.0,0.00019614,2]
[360678062,1746924638709,-450.0,0.00019614,2]
[360678063,1746924638719,-400.0,0.00019614,2]
[360678064,1746924638729,-400.0,0.00019614,2]
[360678065,1746924638739,-400.0,0.00019614,2]
[360678066,1746924638748,-400.0,0.00019614,2]
[360678067,1746924638758,-400.0,0.00019614,2]
[360678069,1746924638768,-406.87294555,0.00019614,2]
[360678071,1746924638778,-406.09184717,0.00019614,2]
[360678073,1746924638788,-400.0,0.00019614,2]
[360678075,1746924638799,-400.0,0.00019614,2]
[360678077,1746924638808,-400.0,0.00019614,2]
[360678079,1746924638818,-398.06577856,0.00019614,2]
[360678080,1746924638827,-500.0,0.00019614,2]
[360678081,1746924638837,-400.0,0.00019614,2]
[360678082,1746924638845,-400.0,0.00019614,2]
[360678083,1746924638855,-531.57,0.00019614,2]
[360678084,1746924638865,-400.0,0.00019614,2]
[360678085,1746924638875,-400.0,0.00019614,2]
[360678087,1746924638885,-400.0,0.00019614,2]
[360678089,1746924638894,-400.0,0.00019614,2]
[360678091,1746924638904,-410.09835017,0.00019614,2]
[360678093,1746924638913,-400.0,0.00019614,2]
[360678095,1746924638923,-400.0,0.00019614,2]
[360678097,1746924638933,-400.0,0.00019614,2]
[360678099,1746924638942,-400.0,0.00019614,2]
[360678101,1746924638952,-400.0,0.00019614,2]
[360678103,1746924638962,-404.91,0.00019614,2]
[360678105,1746924638971,-400.0,0.00019614,2]
[360678107,1746924638980,-400.0,0.00019614,2]
[360678108,1746924638990,-400.0,0.00019614,2]
[360678110,1746924639000,-400.0,0.00019614,2]
[360678113,1746924639011,-400.0,0.00019614,2]
[360678115,1746924639022,-400.0,0.00019614,2]
[360678116,1746924639031,-641.04,0.00019614,2]
[360678118,1746924639041,-201.29524987,0.00019614,2]
[360678121,1746924639050,-462.07180866,0.00019614,2]
[360678122,1746924639061,-531.7,0.00019614,2]
[360678123,1746924639070,-400.0,0.00019614,2]
[360678125,1746924639080,-465.83,0.00019614,2]
[360678127,1746924639089,-400.0,0.00019614,2]
[360678130,1746924639101,-400.0,0.00019614,2]
[360678132,1746924639110,-400.0,0.00019614,2]
[360678134,1746924639119,-533.23,0.00019614,2]
[360678136,1746924639128,-400.0,0.00019614,2]
[360678138,1746924639138,-400.0,0.00019614,2]
[360678140,1746924639147,-722.31,0.00019614,2]
[360678142,1746924639157,-400.0,0.00019614,2]
[360678144,1746924639167,-495.71,0.00019614,2]
[360678146,1746924639176,-400.0,0.00019614,2]
[360678148,1746924639185,-467.49,0.00019614,2]
[360678150,1746924639195,-400.0,0.00019614,2]
[360678152,1746924639205,-400.0,0.00019614,2]
[360678154,1746924639215,-400.0,0.00019614,2]
[360678156,1746924639224,-400.0,0.00019614,2]
[360678158,1746924639233,-400.0,0.00019614,2]
[360678160,1746924639243,-400.0,0.00019614,2]
[360678162,1746924639252,-400.0,0.00019614,2]
[360678163,1746924639262,-400.0,0.00019614,2]
[360678165,1746924639272,-450.0,0.00019614,2]
[360678168,1746924639282,-400.0,0.00019614,2]
[360678169,1746924639291,-400.0,0.00019614,2]
[360678171,1746924639301,-400.0,0.00019614,2]
[360678174,1746924639310,-400.0,0.00019614,2]
[360678176,1746924639319,-400.0,0.00019614,2]
[360678177,1746924639328,-400.0,0.00019614,2]
[360678179,1746924639338,-400.0,0.00019614,2]
[360678181,1746924639347,-400.0,0.00019614,2]
[360678183,1746924639356,-400.0,0.00019614,2]
[360678185,1746924639365,-300.0,0.00019614,2]
[360678187,1746924639375,-12.99448546,0.00019614,2]
[360678190,1746924639388,-603.40551454,0.00019614,2]
[360678192,1746924639397,-400.0,0.00019614,2]
[360678194,1746924639406,-400.0,0.00019614,2]
[360678196,1746924639415,-400.0,0.00019614,2]